Cogmind - Beta 11 X9 @@@ ROGUE MODE // 2021.12.28 @ 13:58:56 // Winter2021/Sauler Player: Yosh Result: Destroyed by S-43 Plague with Heavy Machine Gun Performance ------------- Evolutions (8) 4000 Regions Visited (15) 3000 Robots Destroyed (66) 330 Value Destroyed (2076) 2076 Prototype IDs (33) 660 Alien Tech Used (0) 0 Bonus (529) 529 TOTAL SCORE: 10595 Bonus ------- Follower Combat Kills 70 Entered DSFs 500 Aligned with FarCom 300 Friendly Fire -341 Cogmind --------- Core Integrity 0/1450 Matter 163/300 Energy 98/100 System Corruption 6% Temperature Cool (0) Movement Core (50) Location -2/Research Parts ------- > --- POWER (2) -------- (None) > --- PROPULSION (4) --- (None) > --- UTILITY (15) ----- Advanced Visual Processing Unit Advanced Signal Interpreter Improved System Shield > --- WEAPON (2) ------- (None) > --- INVENTORY (5) ---- Light Quantum Reactor Advanced Signal Interpreter Peak State ------------ > --- POWER ------------ Micro Fission Core Light Particle Reactor > --- PROPULSION ------- Impulse Thruster Q-thruster Impulse Thruster Array > --- UTILITY ---------- Advanced Signal Interpreter Experimental Signal Interpreter Advanced Terrain Scanner Advanced ECM Suite Reaction Control System Hacking Suite Advanced Hacking Suite Advanced Hacking Suite System Shield Improved System Shield Authchip [Device] System Backup Module > --- WEAPON ----------- Plasma Cutter Power Sword > --- INVENTORY -------- Light Deuterium Engine Q-thruster Q-thruster Q-thruster Cooled Particle Cannon [Rating: 115] Favorites ----------- Power Heavy Ion Engine Engine Heavy Ion Engine Power Core Micro Fission Core Reactor Light Particle Reactor Propulsion Light Treads Treads Light Treads Leg Aluminum Leg Wheel Wheel Hover Unit Gyrokinetic Inverter Flight Unit Q-thruster Utility Huge Storage Unit Device Advanced ECM Suite Storage Huge Storage Unit Processor Targeting Computer Hackware Hacking Suite Protection Hardened Light Armor Plating Weapon Heavy Assault Rifle Energy Gun EM Pulse Gun Energy Cannon Cooled Particle Cannon Ballistic Gun Heavy Assault Rifle Launcher Grenade Launcher Special Weapon Plasma Cutter Impact Weapon Heavy Mace Slashing Weapon Greatsword Build | -11 -10 -9 -9 -9 -8 -8 -7 -6 -5 -5 -5 -4 -4 -3 -2 ------- Run | Scr Mat Mat Min Exi Min Mat Fac Fac Fac Upp Upp Fac DSF Res Res Slots Evolved 16 | . . 2 . . . 2 2 2 2 . . 2 . 2 2 Power 1 | . . . . . . . . . . . . 1 . . . Propulsion 2 | . . 1 . . . . . 1 . . . . . . . Utility 13 | . . 1 . . . 2 2 1 2 . . 1 . 2 2 Weapon . | . . . . . . . . . . . . . . . . Parts Attached 150 | 6 10 18 4 . 5 9 28 1 8 1 . . 15 30 15 Power 18 | 1 1 2 . . . 1 5 . 1 . . . . 5 2 Engine 6 | 1 1 2 . . . 1 . . . . . . . . 1 Core 6 | . . . . . . . 5 . . . . . . 1 . Reactor 6 | . . . . . . . . . 1 . . . . 4 1 Propulsion 40 | 2 2 9 1 . . 3 8 . 2 1 . . 3 6 3 Treads 12 | 2 . 8 1 . . 1 . . . . . . . . . Leg 1 | . . . . . . 1 . . . . . . . . . Wheel 4 | . 2 1 . . . 1 . . . . . . . . . Hover 2 | . . . . . . . . . 2 . . . . . . Flight 21 | . . . . . . . 8 . . 1 . . 3 6 3 Utility 51 | 1 4 2 1 . . 2 8 1 2 . . . 10 14 6 Device 15 | . . . . . . . 4 . 1 . . . . 6 4 Storage 4 | 1 2 . . . . . 1 . . . . . . . . Processor 8 | . . 1 . . . . 1 1 . . . . 2 2 1 Hackware 18 | . . . . . . 1 2 . 1 . . . 7 6 1 Protection 6 | . 2 1 1 . . 1 . . . . . . 1 . . Artifact . | . . . . . . . . . . . . . . . . Weapon 41 | 2 3 5 2 . 5 3 7 . 3 . . . 2 5 4 Energy Gun 7 | 1 . 2 1 . 2 1 . . . . . . . . . Energy Cannon 4 | . . . . . . . . . . . . . . 1 3 Ballistic Gun 9 | 1 3 2 1 . 1 1 . . . . . . . . . Ballistic Cannon . | . . . . . . . . . . . . . . . . Launcher 2 | . . 1 . . 1 . . . . . . . . . . Special Weapon 5 | . . . . . . . 1 . 1 . . . 2 1 . Impact Weapon 8 | . . . . . . 1 5 . 2 . . . . . . Slashing Weapon 6 | . . . . . 1 . 1 . . . . . . 3 1 Piercing Weapon . | . . . . . . . . . . . . . . . . Special Melee Weapon . | . . . . . . . . . . . . . . . . Unidentified Prototypes 6 | . . 2 . . . . 1 . 1 . . . . 2 . Corrupted Parts 1 | . . . . . 1 . . . . . . . . . . System Corruption 2 | . . . . . 2 . . . . . . . . . . Parts Lost 75 | . 1 5 2 . 1 4 6 4 8 . . . 11 15 18 Power 6 | . . . . . . . . 1 1 . . . . 2 2 Propulsion 27 | . 1 2 1 . . 3 4 2 2 . . . 4 4 4 Utility 28 | . . 1 . . . . 2 1 2 . . . 5 7 10 Weapon 14 | . . 2 1 . 1 1 . . 3 . . . 2 2 2 Highest Loss Streak 17 | . 1 2 4 . 1 1 4 3 5 . . . 7 9 17 Average Slot Usage (%) 82 | . 97 98 100 100 99 96 77 35 22 19 23 21 33 67 41 Engine 7 | . 14 11 11 11 11 9 . . . . . . . . . Core 1 | . . . . . . . 5 2 . . . . . 3 . Treads 16 | . 17 24 33 33 33 21 . . . . . . . . . Wheel 3 | . 9 8 . . . 1 . . . . . . . . . Flight 3 | . . . . . . . 17 6 . 1 5 5 5 13 5 Device 3 | . . . . . . . 11 6 1 5 5 5 . 15 13 Storage 7 | . 14 11 11 11 11 9 6 . . . . . . . . Processor 7 | . . 11 11 11 11 9 3 4 5 5 5 5 10 6 6 Hackware 5 | . . . . . . 9 19 8 4 . . . 12 18 12 Protection 7 | . 11 10 11 11 11 18 . . . . . . . . . Energy Gun 4 | . 1 7 11 11 10 5 . . 1 . . . . . . Ballistic Gun 9 | . 26 13 11 11 11 12 1 . . . . . . . . Naked Turns . | . . . . . . . . . . . . . . . . Heaviest Build 102 | 13 94 99 98 98 99 102 102 12 10 3 3 3 5 38 14 Greatest Support 63 | 40 40 63 63 63 63 63 20 12 39 6 6 6 32 32 16 Greatest Overweight (x) 31 | . 31 9 1 1 1 6 6 1 1 . . . . 1 1 Average Overweight (x) 1 | . 6 7 1 1 1 1 . . . . . . . . . Largest Inventory Capacity 25 | 8 25 25 25 25 25 25 25 5 5 5 5 5 5 5 5 Average Capacity 17 | 7 21 25 25 25 25 25 8 5 5 5 5 5 5 5 5 Most Carried 25 | 4 25 25 25 25 25 25 25 5 5 5 5 5 5 5 5 Average Carried 16 | 2 18 24 24 24 24 24 8 4 4 4 5 5 4 4 3 Final Capacity 25 | 8 25 25 25 25 25 25 5 5 5 5 5 5 5 5 5 Final Carried 25 | 4 25 23 25 25 25 25 5 5 5 5 5 5 5 5 2 Class Distribution -------------------- 75% | Mutant 5% | Hacker-Mutant 5% | Hacker-Ninja 4% | Hacker-Sprinter 4% | Wizard-Ninja Dominant Class ---------------- Mutant | -10/Materials Mutant | -9/Materials Mutant | -9/Mines Mutant | -9/Exiles Mutant | -8/Mines Mutant | -8/Materials Hacker-Sprinter | -7/Factory Mutant | -6/Factory Mutant | -5/Factory Mutant | -5/Upper Caves Mutant | -5/Upper Caves Mutant | -4/Factory Mutant | -4/DSF Wizard-Ninja | -3/Research Hacker-Ninja | -2/Research Resources | -11 -10 -9 -9 -9 -8 -8 -7 -6 -5 -5 -5 -4 -4 -3 -2 ----------- Run | Scr Mat Mat Min Exi Min Mat Fac Fac Fac Upp Upp Fac DSF Res Res Matter Collected 1973 | 200 408 501 60 . 44 289 184 . . 28 . 22 23 111 103 Remotely . | . . . . . . . . . . . . . . . . Salvage Created 2487 | . 524 1021 152 . 75 334 . 68 . . . . . 238 75 Parts 142 | . 31 64 8 . 9 6 . . . . . . . 20 4 Haulers Intercepted 7 | . 2 5 . . . . . . . . . . . . . Recyclers Shooed . | . . . . . . . . . . . . . . . . Parts Field Recycled . | . . . . . . . . . . . . . . . . Retrieved Matter . | . . . . . . . . . . . . . . . . Parts Self-Destructed . | . . . . . . . . . . . . . . . . Prevented . | . . . . . . . . . . . . . . . . Kills | -11 -10 -9 -9 -9 -8 -8 -7 -6 -5 -5 -5 -4 -4 -3 -2 ------- Run | Scr Mat Mat Min Exi Min Mat Fac Fac Fac Upp Upp Fac DSF Res Res Combat Hostiles Destroyed 51 | . 9 18 3 . 4 7 . 3 . . . . . 6 1 Melee 8 | . . . . . . . . 1 . . . . . 6 1 Guns 34 | . 9 13 3 . 2 7 . . . . . . . . . AOE 7 | . . 5 . . 2 . . . . . . . . . . Classes Destroyed 11 | . 4 3 . . 2 . . . . . . . . 1 1 Worker 1 | . 1 . . . . . . . . . . . . . . Tunneler 1 | . . . . . 1 . . . . . . . . . . Hauler 7 | . 2 5 . . . . . . . . . . . . . Operator 5 | . 2 2 . . . . . . . . . . . 1 . Watcher 1 | . . . . . . . . . . . . . . . 1 Swarmer 14 | . . 3 . . 3 . . 3 . . . . . 4 1 Cutter 2 | . . . . . . . . . . . . . . 2 . Grunt 29 | . 9 10 3 . . 7 . . . . . . . . . Duelist 1 | . . 1 . . . . . . . . . . . . . Sentry 4 | . . 4 . . . . . . . . . . . . . Hunter 1 | . . . . . 1 . . . . . . . . . . Best Kill Streak 4 | . 3 4 3 . 3 2 . 3 . . . . . 4 1 Combat Bots Only 4 | . 2 4 3 . 3 2 . 3 . . . . . 4 1 Max Kills in Single Turn 2 | . 1 2 1 . 2 1 . 1 . . . . . 1 1 Gunslinging . | . . . . . . . . . . . . . . . . Exploded 2 | . . 2 . . 2 . . . . . . . . . . Melee 1 | . . . . . . . . 1 . . . . . 1 1 Uniques/NPCs Destroyed . | . . . . . . . . . . . . . . . . Combat | -11 -10 -9 -9 -9 -8 -8 -7 -6 -5 -5 -5 -4 -4 -3 -2 -------- Run | Scr Mat Mat Min Exi Min Mat Fac Fac Fac Upp Upp Fac DSF Res Res Damage Taken 10133 | . 678 1326 247 . 76 770 333 455 1217 . . . 1351 1274 2406 Core 4232 | . 144 205 23 . 20 62 88 278 690 . . . 883 377 1462 Absorbed by Shields 27 | . . . . . . . . . . . . . 27 . . Core Remaining (%) 60 | 100 42 . . . 38 88 87 67 . . 31 . 23 71 . Volleys Fired 238 | . 52 87 10 . 4 41 5 . 5 . . . . 32 2 Largest 2 | . 2 2 2 . 2 2 1 . 1 . . . . 1 1 Hottest 90 | . 60 63 63 . 88 88 . . 20 . . . . 90 30 Shots Fired 409 | . 104 160 20 . 7 74 5 . 5 . . . . 32 2 Gun 362 | . 104 158 20 . 6 74 . . . . . . . . . Cannon 13 | . . . . . . . . . . . . . . 11 2 Launcher 3 | . . 2 . . 1 . . . . . . . . . . Special 31 | . . . . . . . 5 . 5 . . . . 21 . Kinetic 271 | . 99 105 10 . 3 54 . . . . . . . . . Thermal 62 | . . . . . 3 20 . . 5 . . . . 32 2 Explosive 3 | . . 2 . . 1 . . . . . . . . . . Electromagnetic 68 | . 5 53 10 . . . . . . . . . . . . Robot Hit Streak 16 | . 5 11 10 . 4 16 5 . 1 . . . . 8 . Robot Miss Streak 4 | . 4 4 3 . 2 2 . . 2 . . . . 4 . Penetration Max . | . . . . . . . . . . . . . . . . Secondary Targets 5 | . 2 1 2 . . . . . . . . . . . . Max Gunslinging Chain 1 | . 1 1 1 . . . . . . . . . . . . Shots Hit Robots 287 | . 57 111 14 . 4 60 5 8 1 . . . . 20 7 Core Hits 116 | . 25 47 7 . 7 17 . 1 . . . . . 10 2 Critical Kills . | . . . . . . . . . . . . . . . . Critical Parts Destroyed 2 | . 1 1 . . . . . . . . . . . . . Critical Strikes 7 | . 1 1 1 . . 3 . . . . . . . 1 . Burn 3 | . . . . . . 3 . . . . . . . . . Destroy 2 | . 1 1 . . . . . . . . . . . . . Corrupt 1 | . . . 1 . . . . . . . . . . . . Sever 1 | . . . . . . . . . . . . . . 1 . Melee Attacks 86 | . . . . . . 2 11 17 10 . . . . 32 14 Impact 40 | . . . . . . 2 11 17 10 . . . . . . Slashing 46 | . . . . . . . . . . . . . . 32 14 Piercing . | . . . . . . . . . . . . . . . . Sneak Attacks 2 | . . . . . . . . . . . . . . . 2 Combat Hostiles . | . . . . . . . . . . . . . . . . Follow-up Attacks . | . . . . . . . . . . . . . . . . Damage Inflicted 5225 | . 792 1821 199 . 142 920 . 232 11 . . . . 506 602 Guns 3554 | . 792 1586 199 . 57 920 . . . . . . . . . Cannons . | . . . . . . . . . . . . . . . . Explosions 295 | . . 223 . . 72 . . . . . . . . . . Melee 1180 | . . . . . . . . 232 . . . . . 355 593 Ramming 34 | . . 12 . . 13 . . . . . . . . . 9 Kinetic 2581 | . 766 1060 68 . 24 663 . . . . . . . . . Thermal 554 | . . 102 . . 33 257 . . 11 . . . . 151 . Explosive 193 | . . 121 . . 72 . . . . . . . . . . Electromagnetic 683 | . 26 526 131 . . . . . . . . . . . . Impact 232 | . . . . . . . . 232 . . . . . . . Slashing 948 | . . . . . . . . . . . . . . 355 593 Piercing . | . . . . . . . . . . . . . . . . Highest Corruption 6 | . . . . . 2 . 4 . . . . . . 1 6 Average Corruption 3 | . . . . . 2 . 4 . . . . . . 1 4 Corruption Purged 2 | . . . . . . . . . . . . . . 2 . Effects 6 | . . . . . . . 3 . . . . . . . 3 Message Errors 1 | . . . . . . . 1 . . . . . . . . Matter Fused 2 | . . . . . . . 2 . . . . . . . . Heat Flow Errors 1 | . . . . . . . . . . . . . . . 1 Energy Discharges 2 | . . . . . . . . . . . . . . . 2 Overload Shots 3 | . . . . . . . . . . . . . . 3 . Overflow Damage 292 | . . . . . . . . 32 . . . . . . 260 Projectiles . | . . . . . . . . . . . . . . . . Explosions . | . . . . . . . . . . . . . . . . Melee 292 | . . . . . . . . 32 . . . . . . 260 Knockbacks . | . . . . . . . . . . . . . . . . Impact . | . . . . . . . . . . . . . . . . Kinetic . | . . . . . . . . . . . . . . . . Secondary . | . . . . . . . . . . . . . . . . Self-Inflicted Damage 4 | . . . . . . . . . . . . . . . 4 Shots . | . . . . . . . . . . . . . . . . Rammed 6 | . . 2 . . . . . . . . . . . 1 3 Targets Rammed 7 | . . 2 . . 1 . . . . . . . . 1 3 Kicked . | . . . . . . . . . . . . . . . . Crushed 1 | . . . . . 1 . . . . . . . . . . Highest Temperature 333 | . 77 259 250 . 72 333 . . . . . . . 314 90 Average Temperature 89 | . 29 51 143 . 32 185 . . . . . . . 110 50 Received Heat Transfer 2188 | . 402 546 153 . . 450 57 18 252 . . . 220 9 81 Effects 5 | . . . 1 . . 4 . . . . . . . . . Energy Bleed 1 | . . . 1 . . . . . . . . . . . . Interference 2 | . . . . . . 2 . . . . . . . . . Matter Decay 1 | . . . . . . 1 . . . . . . . . . Damage (minor) 1 | . . . . . . 1 . . . . . . . . . Siege Activations . | . . . . . . . . . . . . . . . . Robots Corrupted . | . . . . . . . . . . . . . . . . Combat Hostiles . | . . . . . . . . . . . . . . . . Parts Fried 5 | . . 1 . . . . . 4 . . . . . . . Impact Corruptions 5 | . . . . . . . . 5 . . . . . . . Robots Melted . | . . . . . . . . . . . . . . . . Combat Hostiles . | . . . . . . . . . . . . . . . . Parts Melted 7 | . . . 1 . 1 3 . . . . . . . 2 . Heat Transferred 1593 | . . 150 . . 74 851 . . 37 . . . . 481 . Parts Sabotaged . | . . . . . . . . . . . . . . . . Parts Stolen . | . . . . . . . . . . . . . . . . Parts Stripped . | . . . . . . . . . . . . . . . . Power Chain Reactions 2 | . . 2 . . . . . . . . . . . . . Missiles Intercepted . | . . . . . . . . . . . . . . . . Alert | -11 -10 -9 -9 -9 -8 -8 -7 -6 -5 -5 -5 -4 -4 -3 -2 ------- Run | Scr Mat Mat Min Exi Min Mat Fac Fac Fac Upp Upp Fac DSF Res Res Peak Influence 380 | . 127 380 157 . 88 121 115 262 255 . . 77 53 363 290 Initial 153 | . . . 107 . . 13 54 26 128 . . 72 53 . 153 Average 90 | . 57 99 152 . 55 29 50 141 189 . . 72 18 135 186 Maximum Alert Level 1 | . . 1 . . . . . 1 1 . . . . 1 1 Low Security (%) 86 | 100 100 84 100 . 100 100 100 58 55 . . 100 100 64 67 Level 1 13 | . . 15 . . . . . 41 44 . . . . 35 32 Level 2 . | . . . . . . . . . . . . . . . . Level 3 . | . . . . . . . . . . . . . . . . Level 4 . | . . . . . . . . . . . . . . . . Level 5 . | . . . . . . . . . . . . . . . . High Security . | . . . . . . . . . . . . . . . . Max Security . | . . . . . . . . . . . . . . . . Squads Dispatched 33 | . 2 2 . . . 3 4 3 5 . . . 2 10 2 Investigation 12 | . . . . . . 2 2 3 2 . . . . 3 . Extermination 6 | . . . . . . . 2 . 1 . . . . 2 1 Reinforcement 15 | . 2 2 . . . 1 . . 2 . . . 2 5 1 Assault . | . . . . . . . . . . . . . . . . Garrison . | . . . . . . . . . . . . . . . . Intercept . | . . . . . . . . . . . . . . . . Construction Impeded 1 | . . . . . . . . . . . . . . . 1 Haulers Reinforced 1 | . . . . . . . . . . . . . . 1 . Active Scanning Responses . | . . . . . . . . . . . . . . . . Cargo Convoy Interrupts 1 | . . . . . . . . . . . . . . 1 . Stealth | -11 -10 -9 -9 -9 -8 -8 -7 -6 -5 -5 -5 -4 -4 -3 -2 --------- Run | Scr Mat Mat Min Exi Min Mat Fac Fac Fac Upp Upp Fac DSF Res Res Distress Signals 15 | . 3 3 . . . . 3 1 2 . . . . 2 1 Communications Jammed . | . . . . . . . . . . . . . . . . Distress Signals . | . . . . . . . . . . . . . . . . Times Spotted 246 | . 19 47 3 . 4 15 20 12 21 2 . . 12 46 45 Peak Tracking Total 25 | . 4 6 3 . 3 4 7 6 13 . . . 11 13 25 Tactical Retreats 28 | . . 3 . . . 1 6 3 1 . . . 1 7 6 Traps | -11 -10 -9 -9 -9 -8 -8 -7 -6 -5 -5 -5 -4 -4 -3 -2 ------- Run | Scr Mat Mat Min Exi Min Mat Fac Fac Fac Upp Upp Fac DSF Res Res Traps Triggered 3 | . . . . . . . 1 . . . . . 1 1 . Indirectly . | . . . . . . . . . . . . . . . . Trap Hack Attempts . | . . . . . . . . . . . . . . . . Triggered . | . . . . . . . . . . . . . . . . Disarmed . | . . . . . . . . . . . . . . . . Reprogrammed . | . . . . . . . . . . . . . . . . Reused . | . . . . . . . . . . . . . . . . Traps Extracted . | . . . . . . . . . . . . . . . . Installed . | . . . . . . . . . . . . . . . . Triggered 1 | . . . . . . . . . . . . . . 1 . Machines | -11 -10 -9 -9 -9 -8 -8 -7 -6 -5 -5 -5 -4 -4 -3 -2 ---------- Run | Scr Mat Mat Min Exi Min Mat Fac Fac Fac Upp Upp Fac DSF Res Res Machines Disabled 2 | . 1 1 . . . . . . . . . . . . . Max in Single Turn 1 | . 1 1 . . . . . . . . . . . . . Garrison Access 1 | . . . . . . . . . 1 . . . . . . Machines Sabotaged 1 | . . . . . . . . 1 . . . . . . . Garrisons Compromised 1 | . . . . . . . . . . . . . . 1 . Overloaded Fab Kills . | . . . . . . . . . . . . . . . . Hacking | -11 -10 -9 -9 -9 -8 -8 -7 -6 -5 -5 -5 -4 -4 -3 -2 --------- Run | Scr Mat Mat Min Exi Min Mat Fac Fac Fac Upp Upp Fac DSF Res Res Machines Accessed 59 | . 3 7 . 1 1 4 10 9 5 . . 1 . 15 3 Terminals 38 | . 3 4 . . 1 3 6 7 1 . . 1 . 10 2 Fabricators 6 | . . . . . . . 2 1 1 . . . . 2 . Repair Stations 4 | . . 2 . . . . . . 2 . . . . . . Recycling Units 4 | . . . . . . . 1 1 . . . . . 2 . Scanalyzers 5 | . . 1 . . . 1 1 . . . . . . 1 1 Garrison Access 1 | . . . . . . . . . 1 . . . . . . Total Hacks 167 | . 7 25 . 1 3 20 28 23 10 . . 1 . 42 7 Successful 103 | . 4 16 . 1 2 15 22 11 3 . . 1 . 23 5 Failed 64 | . 3 9 . . 1 5 6 12 7 . . . . 19 2 Catastrophic 11 | . 1 2 . . 1 1 1 2 1 . . . . 2 . Database Lockouts . | . . . . . . . . . . . . . . . . Manual 79 | . 3 10 . 1 2 11 10 17 2 . . . . 19 4 Terminals 106 | . 7 10 . . 3 11 19 18 2 . . 1 . 30 5 Fabricators 17 | . . . . . . . 4 3 3 . . . . 7 . Repair Stations 9 | . . 5 . . . . . . 4 . . . . . . Recycling Units 8 | . . . . . . . 3 2 . . . . . 3 . Scanalyzers 25 | . . 10 . . . 9 2 . . . . . . 2 2 Garrison Access 1 | . . . . . . . . . 1 . . . . . . Terminal Hacks 37 | . 2 . . 1 2 4 10 3 . . . 1 . 13 1 Part Schematic 1 | . . . . . . . 1 . . . . . . . . Robot Analysis 1 | . . . . . . . 1 . . . . . . . . Prototype ID Bank 1 | . . . . . 1 . . . . . . . . . . Open DSF 2 | . . . . . . . . . . . . 1 . 1 . Level Access Points 2 | . . . . . . . 1 . . . . . . 1 . Branch Access Points 2 | . . . . . . 1 . 1 . . . . . . . Terminal Index 4 | . . . . . . . 1 1 . . . . . 1 1 Fabricator Index 3 | . . . . . . . 1 1 . . . . . 1 . Recycling Unit Index 1 | . . . . . . . . . . . . . . 1 . Scanalyzer Index 1 | . . . . . . . 1 . . . . . . . . Unreport Threat 5 | . . . . . . 2 3 . . . . . . . . Locate Traps 1 | . 1 . . . . . . . . . . . . . . Investigation Status 1 | . . . . . . . . . . . . . . 1 . Extermination Status 2 | . . . . . . . . . . . . . . 2 . Recall Investigation 1 | . . . . . . . . . . . . . . 1 . Recall Extermination 2 | . . . . . . . . . . . . . . 2 . Hauler Manifests 2 | . 1 . . . . 1 . . . . . . . . . Zone Layout 4 | . . . . . 1 . 1 . . . . . . 2 . EX-Prototype ID Bank 1 | . . . . 1 . . . . . . . . . . . Fabricator Hacks 12 | . . . . . . . 4 1 1 . . . . 6 . Load Schematic 7 | . . . . . . . 2 1 1 . . . . 3 . Build 5 | . . . . . . . 2 . . . . . . 3 . Repair Station Hacks 5 | . . 4 . . . . . . 1 . . . . . . Scan Component 2 | . . 2 . . . . . . . . . . . . . Repair 2 | . . 2 . . . . . . . . . . . . . Refit 1 | . . . . . . . . . 1 . . . . . . Recycling Unit Hacks 5 | . . . . . . . 3 1 . . . . . 1 . Process 1 | . . . . . . . 1 . . . . . . . . Report Inventory 3 | . . . . . . . 1 1 . . . . . 1 . Retrieve Matter 1 | . . . . . . . 1 . . . . . . . . Scanalyzer 22 | . . 10 . . . 8 2 . . . . . . . 2 Insert Component 10 | . . 4 . . . 4 1 . . . . . . . 1 Analyze 12 | . . 6 . . . 4 1 . . . . . . . 1 Garrison Access Hacks 1 | . . . . . . . . . 1 . . . . . . Seal Access 1 | . . . . . . . . . 1 . . . . . . Unauthorized Hacks 21 | . 2 2 . . . 3 3 6 . . . . . 3 2 Terminals 20 | . 2 2 . . . 2 3 6 . . . . . 3 2 Assimilate 7 | . 1 . . . . 1 . 3 . . . . . 2 . Botnet 7 | . . 1 . . . 1 2 2 . . . . . . 1 Operators 4 | . 1 1 . . . . 1 . . . . . . . 1 Sabotage 2 | . . . . . . . . 1 . . . . . 1 . Fabricators . | . . . . . . . . . . . . . . . . Repair Stations . | . . . . . . . . . . . . . . . . Recycling Units . | . . . . . . . . . . . . . . . . Scanalyzers 1 | . . . . . . 1 . . . . . . . . . Extract 1 | . . . . . . 1 . . . . . . . . . Garrison Access . | . . . . . . . . . . . . . . . . Data Cores Recovered . | . . . . . . . . . . . . . . . . Used . | . . . . . . . . . . . . . . . . Hacking Detections 52 | . 3 5 . . 1 3 10 8 4 . . 1 . 14 3 Full Trace Events 9 | . . . . . . 1 2 2 2 . . . . 2 . Feedback Events 1 | . . . . . . . . . . . . . . 1 . Hackware Fried 1 | . . . . . . . . . . . . . . 1 . Feedback Blocked . | . . . . . . . . . . . . . . . . Robot Schematics Acquired . | . . . . . . . . . . . . . . . . Robots Built . | . . . . . . . . . . . . . . . . Authchips . | . . . . . . . . . . . . . . . . Time . | . . . . . . . . . . . . . . . . Total Robot Build Rating . | . . . . . . . . . . . . . . . . Part Schematics Acquired 15 | . . 4 . . . 8 2 . . . . . . . 1 Parts Built 7 | . . . . . . . 2 . . . . . . 5 . Authchips 1 | . . . . . . . . . . . . . . 1 . Time 263 | . . . . . . . 157 . . . . . . 106 . Total Part Build Rating 27 | . . . . . . . 8 . . . . . . 19 . Parts Repaired 2 | . . 2 . . . . . . . . . . . . . Time 58 | . . 58 . . . . . . . . . . . . . Parts Recycled . | . . . . . . . . . . . . . . . . Recycled Matter 82 | . . . . . . . 82 . . . . . . . . Retrieved Matter 82 | . . . . . . . 82 . . . . . . . . Retrieved Components . | . . . . . . . . . . . . . . . . Parts Scanalyzed 10 | . . 4 . . . 4 1 . . . . . . . 1 Part Schematics Acquired 10 | . . 4 . . . 4 1 . . . . . . . 1 Parts Damaged . | . . . . . . . . . . . . . . . . Bothacking | -11 -10 -9 -9 -9 -8 -8 -7 -6 -5 -5 -5 -4 -4 -3 -2 ------------ Run | Scr Mat Mat Min Exi Min Mat Fac Fac Fac Upp Upp Fac DSF Res Res Used RIF Installer . | . . . . . . . . . . . . . . . . Robots Hacked . | . . . . . . . . . . . . . . . . Non-combat . | . . . . . . . . . . . . . . . . Combat . | . . . . . . . . . . . . . . . . Robot Hacks Applied . | . . . . . . . . . . . . . . . . Relay Couplers Released . | . . . . . . . . . . . . . . . . Fabnet Peak Effective % . | . . . . . . . . . . . . . . . . Robots Rewired . | . . . . . . . . . . . . . . . . Allies Hacked . | . . . . . . . . . . . . . . . . Hacks Repelled . | . . . . . . . . . . . . . . . . Allies | -11 -10 -9 -9 -9 -8 -8 -7 -6 -5 -5 -5 -4 -4 -3 -2 -------- Run | Scr Mat Mat Min Exi Min Mat Fac Fac Fac Upp Upp Fac DSF Res Res Total Allies 9 | . . . . . . . 5 2 . . . . . 2 . Largest Group 2 | . . . . . . . 2 1 . . . . . 1 . Highest-Rated Group 45 | . . . . . . . 37 10 . . . . . 45 . Highest-Rated Ally 45 | . . . . . . . 37 10 . . . . . 45 . Total Orders . | . . . . . . . . . . . . . . . . Ally Attacks 11 | . . . . . . . 11 . . . . . . . . Total Damage 291 | . . . . . . . 291 . . . . . . . . Kills 4 | . . . . . . . 4 . . . . . . . . Allies Corrupted . | . . . . . . . . . . . . . . . . Allies Melted . | . . . . . . . . . . . . . . . . Field Lobotomies 5 | . . . . . . . 5 . . . . . . . . Intel | -11 -10 -9 -9 -9 -8 -8 -7 -6 -5 -5 -5 -4 -4 -3 -2 ------- Run | Scr Mat Mat Min Exi Min Mat Fac Fac Fac Upp Upp Fac DSF Res Res Robot Analysis Total 1 | . . . . . . . 1 . . . . . . . . Derelict Logs Recovered . | . . . . . . . . . . . . . . . . Drone Launches . | . . . . . . . . . . . . . . . . Drone Recoveries . | . . . . . . . . . . . . . . . . Exploration | -11 -10 -9 -9 -9 -8 -8 -7 -6 -5 -5 -5 -4 -4 -3 -2 ------------- Run | Scr Mat Mat Min Exi Min Mat Fac Fac Fac Upp Upp Fac DSF Res Res Turns Passed 8598 | 93 1204 1623 287 827 692 769 768 377 365 161 22 16 109 1030 255 Spaces Moved 7112 | 50 463 547 103 344 256 189 1199 667 564 345 54 39 171 1699 422 Core 985 | 2 1 . . . . . 5 226 476 193 . . 30 1 51 Treads 1141 | 48 128 93 103 344 256 169 . . . . . . . . . Legs . | . . . . . . . . . . . . . . . . Wheels 822 | . 334 454 . . . 20 14 . . . . . . . . Hover 88 | . . . . . . . . . 88 . . . . . . Flight 4076 | . . . . . . . 1180 441 . 152 54 39 141 1698 371 Fastest Speed 29 | 50 160 215 240 240 240 190 29 37 50 40 40 40 40 31 37 Average Speed 91 | 155 208 219 240 240 240 255 36 42 52 45 40 40 44 36 39 Slowest Speed 1600 | 160 1600 240 240 240 240 325 429 100 100 50 40 40 50 115 100 Overloaded Moves . | . . . . . . . . . . . . . . . . Propulsion Burnouts . | . . . . . . . . . . . . . . . . Robots Hopped 35 | . . . . . . . 4 8 . . . . 1 12 10 Cave-ins Triggered 1 | . . . . . . . 1 . . . . . . . . Exploration Rate (%) 35 | 5 63 43 19 77 46 20 31 19 19 60 11 2 94 43 12 Regions Visited 15 Branch Regions 5 Pre-discovered Areas . | . . . . . . . . . . . . . . . . Known Exits Taken 3 | . . . . . . . 1 . . . . 1 . 1 . Unknown Exits Taken 11 | 1 1 1 1 1 1 1 . 1 1 1 1 . . . . Scrap Searched 2 | . . . . . 1 . . . . 1 . . . . . Spaces Dug 62 | . . . . . . 1 10 9 10 . . . . 27 5 Terrain Destroyed 94 | . . 25 . . 7 1 10 9 10 . . . . 27 5 Melee 55 | . . . . . . 1 10 9 10 . . . . 20 5 Projectile 7 | . . . . . . . . . . . . . . 7 . AOE 32 | . . 25 . . 7 . . . . . . . . . . Terrain Rammed . | . . . . . . . . . . . . . . . . Walls Destroyed . | . . . . . . . . . . . . . . . . Machines Disabled . | . . . . . . . . . . . . . . . . Actions | -11 -10 -9 -9 -9 -8 -8 -7 -6 -5 -5 -5 -4 -4 -3 -2 --------- Run | Scr Mat Mat Min Exi Min Mat Fac Fac Fac Upp Upp Fac DSF Res Res Total 8596 | 62 610 814 124 349 326 397 1505 722 598 348 53 38 197 1990 463 Wait 816 | 3 25 133 . . 56 151 218 38 5 . . . 3 172 12 Move 7032 | 49 462 546 102 343 255 188 1191 650 563 344 53 38 168 1675 405 Hop 30 | . . . . . . . 3 8 . . . . 1 11 7 Pick Up 114 | 4 38 12 7 3 3 3 18 2 3 2 . . 2 14 3 Fast Attach 74 | 6 4 4 . . . 3 11 1 3 . . . 14 20 8 Attach 48 | . . 6 4 . 1 3 14 . 2 1 . . 1 9 7 Detach 19 | . 1 . . . . . 10 2 . . . . 1 3 2 Swap 28 | . 6 8 . . 4 3 3 . 3 . . . . 1 . Drop 93 | . 22 16 1 3 2 3 22 4 4 1 . . 3 12 . Fire 238 | . 52 87 10 . 4 41 5 . 5 . . . . 32 2 Melee 85 | . . . . . . 2 10 17 10 . . . . 32 14 Ram 4 | . . . . . . . . . . . . . . 1 3 Kick . | . . . . . . . . . . . . . . . . Crush 3 | . . 2 . . 1 . . . . . . . . . . Escape Stasis 11 | . . . . . . . . . . . . . 3 8 . Rewire 1 | . . . . . . . . . . . . . 1 . . Trap . | . . . . . . . . . . . . . . . . Miscellaneous . | . . . . . . . . . . . . . . . . Route ------- -11/Scrapyard -10/Materials (discovered 2 exits: *Mat x2) -9/Materials (discovered 4 exits: *Mat / [*Min] / [*Sto x2]) -9/Mines -9/Exiles -8/Mines -8/Materials -7/Factory (discovered 5 exits: *Fac x4 / [*Low]) -6/Factory (discovered 3 exits: *Fac / *Low x2) -5/Factory -5/Upper Caves -5/Upper Caves -4/Factory -4/DSF -3/Research (discovered 4 exits: *Res x3 / *Tes) -2/Research History --------- Turn | Location | Event 2 | -11/Scrapyard | Met Revision 17 17 | -11/Scrapyard | Discovered new exit (range 16) 94 | -11/Scrapyard | Entered Materials 336 | -10/Materials | Build established: Mutant 940 | -10/Materials | Discovered new exit (range 7) 1075 | -10/Materials | Core integrity fell below 50% 1096 | -10/Materials | Discovered new exit (range 16) 1298 | -10/Materials | Entered another Materials area 1298 | -9/Materials | Evolved 2 slots: Propulsion x1, Utility x1 1300 | -9/Materials | Discovered new exit (range 8) 1725 | -9/Materials | Repaired Hvy. Assault Rifle 2166 | -9/Materials | Discovered new exit (range 7) 2475 | -9/Materials | Discovered new exit (range 9) 2487 | -9/Materials | Discovered new exit (range 15) 2544 | -9/Materials | Repaired Wheel 2913 | -9/Materials | Core integrity fell below 50% 2921 | -9/Materials | Entered Mines 2972 | -9/Mines | Lost 4 parts (1n1u2w) 3091 | -9/Mines | Received a Rocket Launcher from a helpful Derelict 3198 | -9/Mines | Deemed a non-threat by the Exiles lab entrance 3198 | -9/Mines | Discovered new exit (range 5) 3208 | -9/Mines | Entered Exiles 3266 | -9/Exiles | Met 8R-AWN 3304 | -9/Exiles | Met EX-HEX 3379 | -9/Exiles | Met EX-BIN 3412 | -9/Exiles | Aligned with FarCom system 3415 | -9/Exiles | Given EX-Vault access code 3482 | -9/Exiles | Opened EX-Vault 3507 | -9/Exiles | Found Field Lobotomy Kit 3553 | -9/Exiles | Warned to stay clear of 0b10 Research branches 3625 | -9/Exiles | Met EX-DEC 3698 | -9/Exiles | Visited The Gauntlet 4009 | -9/Exiles | Discovered new exit (range 14) 4035 | -9/Exiles | Left Exiles lab with Field Lobotomy Kit 4035 | -9/Exiles | Entered Mines 4589 | -8/Mines | Discovered new exit (range 8) 4727 | -8/Mines | Entered Materials 4727 | -8/Materials | Evolved 2 slots: Utility x2 5132 | -8/Materials | Discovered new exit (range 12) 5496 | -8/Materials | Entered Factory 5496 | -7/Factory | Evolved 2 slots: Utility x2 5512 | -7/Factory | Discovered new exit (range 13) 5855 | -7/Factory | Build established: Hacker-Sprinter 5964 | -7/Factory | Identified exit to Factory 6046 | -7/Factory | Discovered new exit (range 13) 6074 | -7/Factory | Crushed by falling debris 6103 | -7/Factory | Assimilated P-60 Hacker with FLK Orb 6110 | -7/Factory | Assimilated W-25 Informer with FLK Orb 6113 | -7/Factory | Assimilated G-47 Trooper with FLK Orb 6124 | -7/Factory | Assimilated Y-54 Guardian with FLK Orb 6127 | -7/Factory | Fabricated Xenon Bombardment Thruster (x2) 6129 | -7/Factory | Lost 4 parts (2n2u) 6136 | -7/Factory | Assimilated Y-54 Guardian with FLK Orb 6213 | -7/Factory | Build established: Hacker-Mutant 6264 | -7/Factory | Entered another Factory area 6264 | -6/Factory | Evolved 2 slots: Propulsion x1, Utility x1 6299 | -6/Factory | Discovered new exit (range 4) 6439 | -6/Factory | Discovered new exit (range 10) 6451 | -6/Factory | Lost 3 parts (1p1n1u) 6630 | -6/Factory | Discovered new exit (range 3) 6635 | -6/Factory | Identified exit to Lower Caves 6641 | -6/Factory | Entered another Factory area 6641 | -5/Factory | Evolved 2 slots: Utility x2 6679 | -5/Factory | Discovered new exit (range 15) 6733 | -5/Factory | Build established: Mutant 6950 | -5/Factory | Lost 3 parts (1p1u1w) 6954 | -5/Factory | Core integrity fell below 50% 7006 | -5/Factory | Entered Upper Caves 7026 | -5/Upper Caves | Lost 5 parts (2n1u2w) 7164 | -5/Upper Caves | Discovered new exit (range 8) 7167 | -5/Upper Caves | Entered another Upper Caves area 7180 | -5/Upper Caves | Discovered new exit (range 5) 7189 | -5/Upper Caves | Entered Factory 7189 | -4/Factory | Evolved 2 slots: Power x1, Utility x1 7204 | -4/Factory | Identified exit to DSF 7205 | -4/Factory | Entered DSF 7221 | -4/DSF | Discovered new exit (range 21) 7234 | -4/DSF | Additional patrols routed to DSF 7264 | -4/DSF | Lost 4 parts (2n2u) 7301 | -4/DSF | Core integrity fell below 50% 7314 | -4/DSF | Entered Research 7314 | -3/Research | Evolved 2 slots: Utility x2 7338 | -3/Research | Lost 7 parts (2n3u2w) 7529 | -3/Research | Found Prototype Slashing Weapon 7529 | -3/Research | Identified Vibroblade 7541 | -3/Research | Discovered new exit (range 4) 7542 | -3/Research | Identified exit to Testing 7595 | -3/Research | Fabricated Xenon Bombardment Thruster (x2) 7637 | -3/Research | Fabricated System Shield? 7749 | -3/Research | Found Prototype Processor 7749 | -3/Research | Identified Exp. Signal Interpreter 7759 | -3/Research | Spotted B-86 Titan 7917 | -3/Research | Identified exit to Research 8027 | -3/Research | Lost 5 parts (1n3u1w) 8086 | -3/Research | Cargo convoy interrupted 8106 | -3/Research | Imp. System Shield fried by hacking feedback 8134 | -3/Research | Fabricated Greatsword (x2) 8280 | -3/Research | Build established: Wizard-Ninja 8335 | -3/Research | Spotted Striker 8344 | -3/Research | Entered another Research area 8344 | -2/Research | Evolved 2 slots: Utility x2 8371 | -2/Research | Lost 9 parts (2p3n3u1w) 8551 | -2/Research | Core integrity fell below 50% 8592 | -2/Research | Core integrity fell below 20% 8594 | -2/Research | Lost 17 parts (2p3n10u2w) 8598 | -2/Research | Spotted B-90 Cyclops 8599 | -2/Research | Destroyed by S-43 Plague with Heavy Machine Gun Last Messages --------------- 08549_ Slammed into S-43 Plague. 08549_ Destabilizing: System corrupted (+2). 08554_ S-43 Plague destroyed. 08560_ Acquired Xenon Bombardment Thruster. 08562_ Acquired 31 matter. 08563_ Adv. ECM Suite destroyed. 08566_ System corrupted: Energy discharge (-26). 08581_ System corrupted: Energy discharge (-21). 08587_ Knocked back. 08588_ Acquired 14 matter. 08589_ W-44 Eye sends out distress signal. 08590_ C-30 ARC bursts open, deploying its payload. 08590_ G-73 Enforcer unfolds itself. 08590_ Critical hit (Burn: +37). 08590_ Acquired Imp. System Shield. 08591_ Knocked back. 08594_ ALERT: Rogue bot located, Programmers report to Research Zone 6P. 08595_ Xenon Bombardment Thruster destroyed. 08599_ C-30 ARC bursts open, deploying its payload. 08599_ S-43 Plague unfolds itself. Map ----- +----------------------------------------------------+ | ?????????????????# #???????????????????????????# | | ?????????????????# #???????????????????????????# | | ?????????????????# #???????????????????????????# | | ?????????????????# #???????????????????????????# | | ????????##???????# #???????????????????????????# | | ????????# ??????# #??????????????????o????????# | | ????????# ??????# #???????????????????????????# | | ????????# ?????# #???????????????????????????# | | ????????# ????# #???????????????????????????### | | ????????? ????# #?????????????????????????????# | | ??????????? ?### ###???????????????????????????# | | ?##+#########/## #???????????????????????????# | | "%" H ######### "" #?????????????# | | " "T #?????????????# | | g ######### #?????????????# | | ###+######### ## #???????????????????????????# | | ??????????? ??##gs ########?????????????????????# | | ?????????? ????# g ## #?????????????????????# | | ????????? ????##g s## #?????????????????????? | | ????????# ?????# ## #?????????????????????? | | ????????#??????## ## #?????????????????????? | | ????????????????# ## #?????????????????????? | | ????????????????# ss## #?????????????????????? | | ????????????????+ s#? =??????????????????????? | | ????????????????# s####+###########?????????????? | | ????????????????# s @ ????? | | ????????????????# ##########?????????????? | | ????????????????# #??????????????????????? | | ????????????????# """ #??????????????????????? | | ????????????????# """ #??????????????????????? | | ????????????????# """ #??????????????????????? | | ????????????????# #??????????????????????? | | ????????????????# #??????????????????????? | | ????????????????# g #??????????????????????? | | ????????????????# #??????????????????????? | | ????????????????# #??????????????????????? | | ????????????????# g ssss#??????????????????????? | | ????????????????#gg ^!s% w#??????????????????????? | | ????????????????+ t!! #??????????????????????? | | ????????????????# ! B ??????????????????????? | | ????????????????# wB ??????????????????????? | | ????????????????# ??????????????????????? | | ????????????????# * #??????????????????????? | | ???????????????? ??????????????????????? | | ?????????????????????? ???????????????????????? | | ?????????????????????????????????????????????????? | | ?????????????????????????????????????????????????? | | ?????????????????????????????????????????????????? | | ?????????????????????????o???????????????????????? | | ?????????????????????????????????????????????????? | +----------------------------------------------------+ Best States ------------- Heat Dissipation 49 Energy Generation 33 Energy Capacity 300 Matter Stores 300 Matter Capacity 300 Sight Range 22 Terrain Scan Range 20 Terrain Scan Density 10 ECM Strength 2 Jamming Range 8 Additional Mass Support 6 Armor Coverage 300 Evasion (%) 75 Targeting Accuracy 5 Melee Accuracy 12 Recoil Reduction 3 Stasis Canceling 1 Offensive Hacking 52 Defensive Hacking 22 Authchip Count 7 Item Schematics ----------------- Hacking Suite | -9/Materials | Scanalyzed VTOL Module | -9/Materials | Scanalyzed Mace | -9/Materials | Scanalyzed Weight Redist. System | -9/Materials | Scanalyzed Transmission Jammer | -8/Materials | Scanalyzed Greatsword | -8/Materials | Scanalyzed Lgt. Nuclear Core | -8/Materials | Scanalyzed Sml. Storage Unit | -8/Materials | Scanalyzed Adv. Beam Rifle | -8/Materials | Extracted Hvy. Armor Plating | -8/Materials | Extracted System Shield | -8/Materials | Extracted Ion Cannon | -8/Materials | Extracted Cld. Particle Cannon | -7/Factory | Scanalyzed Xenon Bombardment Thruster | -7/Factory | Hacked Q-thruster | -2/Research | Scanalyzed Robot Schematics ------------------ None Fabricated ------------ Xenon Bombardment Thruster | x2 | -7/Factory Xenon Bombardment Thruster | x2 | -3/Research | Authchip System Shield | x1 | -3/Research Greatsword | x2 | -3/Research Alien Tech Used ----------------- None Achievements -------------- None Challenges ------------ None Game ------ Seed ImprovedInsulationSabre Manual? 0 Play Time 02:09:49 Cumulative 26.1 hours Start 2021.12.28 @ 11:27:44 End 2021.12.28 @ 13:58:56 Sessions 1 Manual Loads 0 Difficulty Rogue Special Mode Winter2021/Sauler Game No. 18 Rogue 18 Adventurer 0 Explorer 0 Win Type - Total 0 Types 0/0/0/0/0/0/0/0/0 Lore% 30 Gallery% 33 Achievement% 29 Wizard Run 0 Options --------- ASCII 1 Keyboard 1 Movement Vi Keybinds 0 Fullscreen 1 Font 18/X11 Map View 76x50 Tactical HUD 1 Map Filters NONE Filters NONE Steam 1 RUN: f3208364-3c02-4ae9-bd79-0e337e511bc5